[Event "OGD Prinsenstad-toernooi - A groep"]
[Site "Delft"]
[Date "2013.03.29"]
[Round "1.9"]
[White "Oudewaal, Vincent"]
[Black "Peng, Zhaoqin"]
[Result "1-0"]
[ECO "A29"]
[WhiteElo "2059"]
[BlackElo "2385"]
[PlyCount "105"]
[EventDate "2013.03.29"]
[EventType "swiss"]
[EventRounds "6"]
[EventCountry "NED"]
[Source "DSC"]
[SourceDate "2013.02.04"]
[TimeControl "6000+10"]

1. c4 {[%emt 0:00:00]} e5 {[%emt 0:00:53]} 2. g3 {[%emt 0:00:00]} Nf6 {
[%emt 0:00:00]} 3. Bg2 {[%emt 0:00:05]} d5 {[%emt 0:00:17]} 4. cxd5 {
[%emt 0:00:11]} Nxd5 {[%emt 0:00:03]} 5. Nc3 {[%emt 0:00:08]} Nb6 {
[%emt 0:00:04]} 6. Nf3 {[%emt 0:00:08]} Nc6 {[%emt 0:00:06]} 7. O-O {
[%emt 0:01:12]} Be7 {[%emt 0:00:00]} 8. d3 {[%emt 0:00:47]} O-O {[%emt 0:00:10]
} 9. Be3 {[%emt 0:03:42]} Be6 {[%emt 0:01:15]} 10. Rc1 {[%emt 0:02:20]} Re8 {
[%emt 0:12:15]} 11. Ne4 {[%emt 0:00:00]} Bd5 {[%emt 0:05:52]} 12. Nc3 {
[%emt 0:00:44]} Bf6 {[%emt 0:09:24]} 13. h4 {[%emt 0:14:43]} h6 {[%emt 0:08:37]
} 14. Qd2 {[%emt 0:13:33]} Nd4 {[%emt 0:00:00]} 15. Bxd4 {[%emt 0:12:44]} exd4
{[%emt 0:00:33]} 16. Nxd5 {[%emt 0:00:00]} Nxd5 {[%emt 0:00:16]} 17. Rc4 {
[%emt 0:01:06]} c6 {[%emt 0:07:42]} 18. Re1 {[%emt 0:11:46]} Qd6 {
[%emt 0:06:17]} 19. Qc1 {[%emt 0:01:32]} Nb6 {[%emt 0:08:00]} 20. Rc2 {
[%emt 0:00:27]} Re6 {[%emt 0:07:12]} 21. Nd2 {[%emt 0:01:35]} Rd8 {
[%emt 0:08:25]} 22. Ne4 {[%emt 0:01:09]} Qe7 {[%emt 0:00:26]} 23. Nc5 {
[%emt 0:03:50]} Re5 {[%emt 0:00:19]} 24. b4 {[%emt 0:01:08]} Nd5 {
[%emt 0:00:50]} 25. Qd2 {[%emt 0:11:51]} Bxh4 {[%emt 0:04:51]} 26. gxh4 {
[%emt 0:04:53]} Ne3 {[%emt 0:07:14]} 27. fxe3 {[%emt 0:01:11]} dxe3 {
[%emt 0:00:15]} 28. Qc3 {[%emt 0:00:04]} Rh5 {[%emt 0:00:16]} 29. Rf1 {
[%emt 0:00:57]} Qxh4 {[%emt 0:00:05]} 30. Rf3 {[%emt 0:00:11]} Qh2+ {
[%emt 0:01:45]} 31. Kf1 {[%emt 0:00:06]} Rg5 {[%emt 0:00:42]} 32. Rxe3 {
[%emt 0:00:04]} Rxg2 {[%emt 0:00:07]} 33. Ke1 {[%emt 0:00:05]} Qf4 {
[%emt 0:01:24]} 34. Qe5 {[%emt 0:03:50]} Rg1+ {[%emt 0:00:02]} 35. Kd2 {
[%emt 0:00:22]} Qxb4+ {[%emt 0:00:03]} 36. Qc3 {[%emt 0:00:06]} Qb1 {
[%emt 0:01:03]} 37. Rf3 {[%emt 0:00:52]} Re8 {[%emt 0:00:42]} 38. Ne4 {
[%emt 0:00:00]} Qe1+ {[%emt 0:01:01]} 39. Ke3 {[%emt 0:00:05]} Qh4 {
[%emt 0:00:09]} 40. Qc4 {[%emt 0:00:20]} Qh5 {[%emt 0:00:24]} 41. Rb2 {
[%emt 0:01:11]} Re7 {[%emt 0:00:37]} 42. Kd2 {[%emt 0:00:15]} Qa5+ {
[%emt 0:00:10]} 43. Qb4 {[%emt 0:00:00]} Qe5 {[%emt 0:00:04]} 44. Rc2 {
[%emt 0:00:16]} f5 {[%emt 0:00:07]} 45. Rc5 {[%emt 0:00:04]} Qa1 {
[%emt 0:00:12]} 46. Qb3+ {[%emt 0:00:16]} Kh7 {[%emt 0:00:00]} 47. Rfxf5 {
[%emt 0:00:06]} Rxe4 {[%emt 0:00:21]} 48. dxe4 {[%emt 0:00:00]} Qe1+ {
[%emt 0:00:11]} 49. Kd3 {[%emt 0:00:55]} Rg3+ {[%emt 0:00:01]} 50. Rf3 {
[%emt 0:00:01]} Rg2 {[%emt 0:00:31]} 51. Qc2 {[%emt 0:00:23]} Qg1 {
[%emt 0:00:12]} 52. e5 {[%emt 0:00:35]} Rg4 {[%emt 0:00:12]} 53. Rc4 {
[%emt 0:00:16]} 1-0

[Event "OGD Prinsenstad-toernooi - A groep"]
[Site "Delft"]
[Date "2013.03.30"]
[Round "2.1"]
[White "Smeets, Jan"]
[Black "Senders, Mischa"]
[Result "1-0"]
[ECO "B90"]
[WhiteElo "2627"]
[BlackElo "2208"]
[PlyCount "53"]
[EventDate "2013.03.29"]
[EventType "swiss"]
[EventRounds "6"]
[EventCountry "NED"]
[Source "DSC"]
[SourceDate "2013.02.04"]
[TimeControl "6000+10"]

1. e4 {[%emt 0:00:00]} c5 {[%emt 0:00:00]} 2. Nf3 {[%emt 0:00:10]} d6 {
[%emt 0:00:10]} 3. d4 {[%emt 0:00:10]} cxd4 {[%emt 0:00:10]} 4. Nxd4 {
[%emt 0:00:10]} Nf6 {[%emt 0:00:10]} 5. Nc3 {[%emt 0:00:10]} a6 {[%emt 0:00:10]
} 6. Be3 {[%emt 0:00:10]} Nbd7 {[%emt 0:00:10]} 7. g4 {[%emt 0:01:09]} h6 {
[%emt 0:02:13]} 8. Qe2 {[%emt 0:05:15]} e6 {[%emt 0:06:22]} 9. h4 {
[%emt 0:05:11]} h5 {[%emt 0:19:51]} 10. g5 {[%emt 0:03:46]} Ng4 {[%emt 0:01:26]
} 11. g6 {[%emt 0:00:18]} Nde5 {[%emt 0:02:55]} 12. gxf7+ {[%emt 0:01:12]} Nxf7
{[%emt 0:05:04]} 13. O-O-O {[%emt 0:02:24]} Qf6 {[%emt 0:10:41]} 14. Bh3 {
[%emt 0:06:51]} Nxe3 {[%emt 0:07:06]} 15. fxe3 {[%emt 0:00:27]} Ne5 {
[%emt 0:01:29]} 16. Na4 {[%emt 0:02:33]} Ng4 {[%emt 0:06:35]} 17. Nb6 {
[%emt 0:01:44]} Rb8 {[%emt 0:00:13]} 18. Bxg4 {[%emt 0:06:55]} hxg4 {
[%emt 0:00:31]} 19. Qxg4 {[%emt 0:00:06]} Rh6 {[%emt 0:01:20]} 20. Nf3 {
[%emt 0:04:27]} Qd8 {[%emt 0:03:52]} 21. Nxc8 {[%emt 0:01:26]} Rxc8 {
[%emt 0:00:15]} 22. e5 {[%emt 0:08:12]} d5 {[%emt 0:03:22]} 23. Nd4 {
[%emt 0:01:16]} Qb6 {[%emt 0:01:58]} 24. Rhf1 {[%emt 0:01:40]} a5 {
[%emt 0:02:33]} 25. e4 {[%emt 0:02:44]} a4 {[%emt 0:03:27]} 26. a3 {
[%emt 0:02:33]} Rc3 {[%emt 0:05:16]} 27. bxc3 {[%emt 0:00:48]} 1-0

[Event "OGD Prinsenstad-toernooi - A groep"]
[Site "Delft"]
[Date "2013.03.30"]
[Round "2.2"]
[White "Von Meijenfeldt, Bart"]
[Black "L'Ami, Erwin"]
[Result "0-1"]
[ECO "B15"]
[WhiteElo "2195"]
[BlackElo "2615"]
[PlyCount "36"]
[EventDate "2013.03.29"]
[EventType "swiss"]
[EventRounds "6"]
[EventCountry "NED"]
[Source "DSC"]
[SourceDate "2013.02.04"]
[TimeControl "6000+10"]

1. e4 c6 2. d4 d5 3. Nc3 b5 4. a3 dxe4 5. Nxe4 Bf5 6. Ng3 Bg6 7. Nh3 e6 8. Nf4
Bd6 9. h4 Bxf4 10. Bxf4 h6 11. c3 Nf6 12. a4 bxa4 13. h5 Bh7 14. Rxa4 O-O 15.
Bd3 Bxd3 16. Qxd3 Nbd7 17. O-O Nc5 18. Qc2 Nxa4 0-1

[Event "OGD Prinsenstad-toernooi - A groep"]
[Site "Delft"]
[Date "2013.03.30"]
[Round "2.3"]
[White "Reinderman, Dimitri"]
[Black "Padurariu, Smaranda"]
[Result "1-0"]
[ECO "A18"]
[WhiteElo "2573"]
[BlackElo "2201"]
[PlyCount "61"]
[EventDate "2013.03.29"]
[EventType "swiss"]
[EventRounds "6"]
[EventCountry "NED"]
[Source "DSC"]
[SourceDate "2013.02.04"]
[TimeControl "6000+10"]

1. c4 {[%emt 0:02:29]} Nf6 {[%emt 0:00:13]} 2. Nc3 {[%emt 0:00:07]} e6 {
[%emt 0:00:03]} 3. e4 {[%emt 0:00:07]} d5 {[%emt 0:00:05]} 4. e5 {
[%emt 0:00:05]} d4 {[%emt 0:00:06]} 5. exf6 {[%emt 0:00:04]} dxc3 {
[%emt 0:00:05]} 6. bxc3 {[%emt 0:00:07]} Qxf6 {[%emt 0:00:05]} 7. Nf3 {
[%emt 0:00:15]} e5 {[%emt 0:00:25]} 8. d4 {[%emt 0:00:06]} exd4 {[%emt 0:01:22]
} 9. Bg5 {[%emt 0:00:13]} Qe6+ {[%emt 0:00:09]} 10. Be2 {[%emt 0:00:14]} Be7 {
[%emt 0:01:41]} 11. cxd4 {[%emt 0:00:37]} Bxg5 {[%emt 0:08:56]} 12. Nxg5 {
[%emt 0:00:07]} Qf6 {[%emt 0:00:12]} 13. Ne4 {[%emt 0:08:34]} Qh4 {
[%emt 0:01:41]} 14. Bf3 {[%emt 0:09:08]} O-O {[%emt 0:06:45]} 15. O-O {
[%emt 0:00:22]} Nc6 {[%emt 0:05:31]} 16. d5 {[%emt 0:06:14]} Ne5 {
[%emt 0:02:16]} 17. Rc1 {[%emt 0:00:19]} Re8 {[%emt 0:08:49]} 18. Re1 {
[%emt 0:07:09]} Bf5 {[%emt 0:02:26]} 19. Ng3 {[%emt 0:06:23]} Nd3 {
[%emt 0:08:28]} 20. Rxe8+ {[%emt 0:10:28]} Rxe8 {[%emt 0:00:06]} 21. Qa4 {
[%emt 0:00:11]} Qe7 {[%emt 0:02:59]} 22. Rf1 {[%emt 0:02:11]} Nc5 {
[%emt 0:08:19]} 23. Qxa7 {[%emt 0:02:22]} Bd3 {[%emt 0:04:50]} 24. Rd1 {
[%emt 0:06:31]} Bxc4 {[%emt 0:07:52]} 25. h3 {[%emt 0:01:45]} h6 {
[%emt 0:04:02]} 26. Nf5 {[%emt 0:04:48]} Qf8 {[%emt 0:00:04]} 27. d6 {
[%emt 0:00:37]} Ne6 {[%emt 0:01:41]} 28. Ne3 {[%emt 0:07:21]} b5 {
[%emt 0:03:25]} 29. dxc7 {[%emt 0:00:48]} Rc8 {[%emt 0:00:40]} 30. Rd7 {
[%emt 0:00:47]} Kh7 {[%emt 0:01:02]} 31. Bb7 {[%emt 0:04:35]} 1-0

[Event "OGD Prinsenstad-toernooi - A groep"]
[Site "Delft"]
[Date "2013.03.30"]
[Round "2.4"]
[White "Barendse, Ted"]
[Black "Andersson, Ulf"]
[Result "1/2-1/2"]
[ECO "E11"]
[WhiteElo "2182"]
[BlackElo "2562"]
[PlyCount "32"]
[EventDate "2013.03.29"]
[EventType "swiss"]
[EventRounds "6"]
[EventCountry "NED"]
[Source "DSC"]
[SourceDate "2013.02.04"]
[TimeControl "6000+10"]

1. d4 Nf6 2. c4 e6 3. Nf3 Bb4+ 4. Bd2 c5 5. g3 Bxd2+ 6. Nbxd2 cxd4 7. Nxd4 Nc6
8. Nxc6 dxc6 9. Bg2 e5 10. O-O O-O 11. Ne4 Nxe4 12. Bxe4 Be6 13. Qc2 f5 14. Bg2
Qe7 15. Qc3 e4 16. Rad1 Rad8 1/2-1/2

[Event "OGD Prinsenstad-toernooi - A groep"]
[Site "Delft"]
[Date "2013.03.30"]
[Round "2.5"]
[White "Vistisen, Lars"]
[Black "Haslinger, Stewart"]
[Result "0-1"]
[ECO "C41"]
[WhiteElo "2172"]
[BlackElo "2547"]
[PlyCount "74"]
[EventDate "2013.03.29"]
[EventType "swiss"]
[EventRounds "6"]
[EventCountry "NED"]
[Source "DSC"]
[SourceDate "2013.02.04"]
[TimeControl "6000+10"]

1. e4 {[%emt 0:00:00]} d6 {[%emt 0:00:00]} 2. d4 {[%emt 0:00:09]} Nf6 {
[%emt 0:00:02]} 3. Nc3 {[%emt 0:00:32]} e5 {[%emt 0:00:06]} 4. Nf3 {
[%emt 0:00:23]} Nbd7 {[%emt 0:00:05]} 5. b3 {[%emt 0:07:23]} c6 {[%emt 0:04:43]
} 6. Bb2 {[%emt 0:00:56]} Be7 {[%emt 0:05:22]} 7. g3 {[%emt 0:04:55]} O-O {
[%emt 0:00:46]} 8. Bg2 {[%emt 0:00:24]} b5 {[%emt 0:00:36]} 9. O-O {
[%emt 0:04:28]} Re8 {[%emt 0:05:36]} 10. Re1 {[%emt 0:00:56]} Bb7 {
[%emt 0:00:27]} 11. Qd2 {[%emt 0:13:59]} Bf8 {[%emt 0:02:12]} 12. Nd1 {
[%emt 0:16:22]} Qb6 {[%emt 0:06:50]} 13. c4 {[%emt 0:10:38]} bxc4 {
[%emt 0:03:14]} 14. dxe5 {[%emt 0:05:11]} dxe5 {[%emt 0:09:23]} 15. bxc4 {
[%emt 0:00:10]} Bb4 {[%emt 0:00:31]} 16. Nc3 {[%emt 0:04:22]} Ba6 {
[%emt 0:05:49]} 17. Bf1 {[%emt 0:01:04]} Qc5 {[%emt 0:05:11]} 18. Qc2 {
[%emt 0:01:02]} Nb6 {[%emt 0:01:21]} 19. Nd2 {[%emt 0:05:21]} Ng4 {
[%emt 0:26:32]} 20. Nb3 {[%emt 0:00:53]} Qe7 {[%emt 0:00:09]} 21. h3 {
[%emt 0:03:23]} Nf6 {[%emt 0:00:03]} 22. a3 {[%emt 0:01:51]} Bxc3 {
[%emt 0:09:43]} 23. Bxc3 {[%emt 0:00:10]} Bxc4 {[%emt 0:02:57]} 24. Bxc4 {
[%emt 0:06:54]} Nxc4 {[%emt 0:00:01]} 25. Bb4 {[%emt 0:00:08]} Qe6 {
[%emt 0:00:14]} 26. Kg2 {[%emt 0:01:56]} Nb6 {[%emt 0:01:50]} 27. Rac1 {
[%emt 0:01:52]} Rec8 {[%emt 0:01:39]} 28. Red1 {[%emt 0:00:36]} Nxe4 {
[%emt 0:01:18]} 29. Qxe4 {[%emt 0:01:41]} Qxb3 {[%emt 0:00:03]} 30. Qxe5 {
[%emt 0:01:15]} Nd5 {[%emt 0:00:53]} 31. Bc5 {[%emt 0:01:41]} Re8 {
[%emt 0:00:03]} 32. Qd6 {[%emt 0:01:09]} Re6 {[%emt 0:03:48]} 33. Qd7 {
[%emt 0:00:01]} Rg6 {[%emt 0:01:54]} 34. Re1 {[%emt 0:01:11]} h6 {
[%emt 0:00:25]} 35. Re8+ {[%emt 0:00:20]} Rxe8 {[%emt 0:00:01]} 36. Qxe8+ {
[%emt 0:00:01]} Kh7 {[%emt 0:00:01]} 37. Qxf7 {[%emt 0:00:03]} Ne3+ {
[%emt 0:00:01]} 0-1

[Event "OGD Prinsenstad-toernooi - A groep"]
[Site "Delft"]
[Date "2013.03.30"]
[Round "2.6"]
[White "Kohlweyer, Bernd"]
[Black "Dijkhuis, Tycho"]
[Result "1-0"]
[ECO "A16"]
[WhiteElo "2460"]
[BlackElo "2180"]
[PlyCount "55"]
[EventDate "2013.03.29"]
[EventType "swiss"]
[EventRounds "6"]
[EventCountry "NED"]
[Source "DSC"]
[SourceDate "2013.02.04"]
[TimeControl "6000+10"]

1. c4 {[%emt 0:00:00]} Nf6 {[%emt 0:00:00]} 2. Nc3 {[%emt 0:00:39]} g6 {
[%emt 0:00:04]} 3. e4 {[%emt 0:00:08]} e5 {[%emt 0:00:08]} 4. f4 {
[%emt 0:05:24]} d6 {[%emt 0:01:35]} 5. Nf3 {[%emt 0:00:42]} Nc6 {[%emt 0:00:44]
} 6. d3 {[%emt 0:00:44]} Bg7 {[%emt 0:00:50]} 7. Be2 {[%emt 0:00:07]} O-O {
[%emt 0:00:30]} 8. O-O {[%emt 0:00:08]} a6 {[%emt 0:03:17]} 9. Kh1 {
[%emt 0:08:34]} Rb8 {[%emt 0:01:26]} 10. a4 {[%emt 0:02:13]} Re8 {
[%emt 0:07:34]} 11. Rb1 {[%emt 0:06:42]} Nd4 {[%emt 0:03:24]} 12. b4 {
[%emt 0:04:21]} c6 {[%emt 0:01:44]} 13. b5 {[%emt 0:15:14]} Nxe2 {
[%emt 0:11:26]} 14. Nxe2 {[%emt 0:03:12]} Bg4 {[%emt 0:05:15]} 15. h3 {
[%emt 0:01:31]} Bxf3 {[%emt 0:00:51]} 16. Rxf3 {[%emt 0:00:06]} Nd7 {
[%emt 0:07:32]} 17. Ba3 {[%emt 0:05:13]} d5 {[%emt 0:10:00]} 18. exd5 {
[%emt 0:06:17]} cxd5 {[%emt 0:01:08]} 19. cxd5 {[%emt 0:00:06]} Nb6 {
[%emt 0:01:51]} 20. d6 {[%emt 0:01:10]} exf4 {[%emt 0:10:33]} 21. Nxf4 {
[%emt 0:08:09]} Be5 {[%emt 0:01:58]} 22. Qb3 {[%emt 0:01:27]} Bxd6 {
[%emt 0:03:12]} 23. Nxg6 {[%emt 0:01:47]} hxg6 {[%emt 0:01:04]} 24. Qxf7+ {
[%emt 0:00:08]} Kh8 {[%emt 0:00:05]} 25. Qxg6 {[%emt 0:02:34]} Be5 {
[%emt 0:02:34]} 26. Rf5 {[%emt 0:01:35]} Bg7 {[%emt 0:00:33]} 27. Rh5+ {
[%emt 0:00:43]} Kg8 {[%emt 0:00:04]} 28. Rf1 {[%emt 0:00:21]} 1-0

[Event "OGD Prinsenstad-toernooi - A groep"]
[Site "Delft"]
[Date "2013.03.30"]
[Round "2.7"]
[White "Vereggen, Lars"]
[Black "Ducarmon, Quinten"]
[Result "0-1"]
[ECO "D02"]
[WhiteElo "2138"]
[BlackElo "2416"]
[PlyCount "58"]
[EventDate "2013.03.29"]
[EventType "swiss"]
[EventRounds "6"]
[EventCountry "NED"]
[Source "DSC"]
[SourceDate "2013.02.04"]
[TimeControl "6000+10"]

1. d4 {[%emt 0:00:46]} d5 {[%emt 0:00:18]} 2. Nf3 {[%emt 0:00:13]} Nf6 {
[%emt 0:00:16]} 3. g3 {[%emt 0:01:35]} Bf5 {[%emt 0:00:22]} 4. Bg2 {
[%emt 0:00:06]} e6 {[%emt 0:01:32]} 5. O-O {[%emt 0:00:22]} Nbd7 {
[%emt 0:02:45]} 6. c3 {[%emt 0:06:56]} Bd6 {[%emt 0:03:17]} 7. Nbd2 {
[%emt 0:05:48]} h6 {[%emt 0:01:08]} 8. c4 {[%emt 0:00:32]} c6 {[%emt 0:00:07]}
9. b3 {[%emt 0:00:05]} O-O {[%emt 0:01:25]} 10. Bb2 {[%emt 0:00:20]} a5 {
[%emt 0:05:27]} 11. h3 {[%emt 0:08:39]} a4 {[%emt 0:08:31]} 12. Ne5 {
[%emt 0:02:47]} Bb4 {[%emt 0:04:52]} 13. Nxd7 {[%emt 0:10:57]} Nxd7 {
[%emt 0:07:36]} 14. Nb1 {[%emt 0:00:46]} b5 {[%emt 0:05:17]} 15. c5 {
[%emt 0:16:09]} axb3 {[%emt 0:06:29]} 16. Qxb3 {[%emt 0:00:55]} Ba5 {
[%emt 0:01:13]} 17. Nc3 {[%emt 0:00:27]} e5 {[%emt 0:03:27]} 18. Nxd5 {
[%emt 0:11:37]} cxd5 {[%emt 0:01:55]} 19. Qxd5 {[%emt 0:02:38]} Rc8 {
[%emt 0:07:29]} 20. c6 {[%emt 0:01:17]} Be6 {[%emt 0:01:14]} 21. cxd7 {
[%emt 0:01:59]} Bxd5 {[%emt 0:00:55]} 22. dxc8=Q {[%emt 0:00:07]} Qxc8 {
[%emt 0:00:02]} 23. Bxd5 {[%emt 0:00:13]} Qc2 {[%emt 0:03:45]} 24. Ba3 {
[%emt 0:07:21]} Rd8 {[%emt 0:09:41]} 25. e4 {[%emt 0:02:54]} exd4 {
[%emt 0:01:36]} 26. Rfd1 {[%emt 0:04:02]} d3 {[%emt 0:05:18]} 27. Rac1 {
[%emt 0:01:01]} Qe2 {[%emt 0:00:10]} 28. Bc5 {[%emt 0:01:53]} Rc8 {
[%emt 0:00:28]} 29. Bb3 {[%emt 0:01:03]} d2 {[%emt 0:00:26]} 0-1

[Event "OGD Prinsenstad-toernooi - A groep"]
[Site "Delft"]
[Date "2013.03.30"]
[Round "2.8"]
[White "Gieben, Stijn"]
[Black "L'Ami-Motoc, Alina"]
[Result "0-1"]
[ECO "B90"]
[WhiteElo "2035"]
[BlackElo "2381"]
[PlyCount "44"]
[EventDate "2013.03.29"]
[EventType "swiss"]
[EventRounds "6"]
[EventCountry "NED"]
[Source "DSC"]
[SourceDate "2013.02.04"]
[TimeControl "6000+10"]

1. e4 c5 2. Nf3 d6 3. d4 cxd4 4. Nxd4 Nf6 5. Nc3 a6 6. a4 e5 7. Nf3 Be7 8. Bc4
O-O 9. O-O Be6 10. Qe2 Qc7 11. Bxe6 fxe6 12. Rd1 Nc6 13. Qc4 Qd7 14. b4 Rac8
15. Qb3 Nh5 16. Be3 Nf4 17. Bxf4 Rxf4 18. Rd3 Bf6 19. a5 Rxf3 20. gxf3 Nd4 21.
Rxd4 exd4 22. Ne2 d3 0-1

[Event "OGD Prinsenstad-toernooi - A groep"]
[Site "Delft"]
[Date "2013.03.30"]
[Round "2.9"]
[White "Ootes, Lars"]
[Black "Beerdsen, Thomas"]
[Result "1-0"]
[ECO "B94"]
[WhiteElo "2350"]
[BlackElo "2116"]
[PlyCount "81"]
[EventDate "2013.03.29"]
[EventType "swiss"]
[EventRounds "6"]
[EventCountry "NED"]
[Source "DSC"]
[SourceDate "2013.02.04"]
[TimeControl "6000+10"]

1. e4 {[%emt 0:00:00]} c5 {[%emt 0:00:00]} 2. Nf3 {[%emt 0:00:19]} d6 {
[%emt 0:00:10]} 3. d4 {[%emt 0:00:10]} cxd4 {[%emt 0:00:05]} 4. Nxd4 {
[%emt 0:00:13]} Nf6 {[%emt 0:00:07]} 5. Nc3 {[%emt 0:00:27]} a6 {[%emt 0:00:08]
} 6. Bg5 {[%emt 0:00:35]} Nbd7 {[%emt 0:00:16]} 7. Bc4 {[%emt 0:01:40]} e6 {
[%emt 0:04:47]} 8. Qd2 {[%emt 0:01:45]} Nc5 {[%emt 0:01:32]} 9. f3 {
[%emt 0:08:28]} b5 {[%emt 0:01:02]} 10. Bb3 {[%emt 0:08:04]} Bb7 {
[%emt 0:02:20]} 11. O-O-O {[%emt 0:03:00]} Be7 {[%emt 0:02:07]} 12. h4 {
[%emt 0:02:40]} O-O {[%emt 0:09:59]} 13. Kb1 {[%emt 0:03:18]} b4 {
[%emt 0:01:22]} 14. Na4 {[%emt 0:05:32]} Qa5 {[%emt 0:00:33]} 15. a3 {
[%emt 0:12:02]} Nxa4 {[%emt 0:06:24]} 16. axb4 {[%emt 0:00:59]} Qb6 {
[%emt 0:03:41]} 17. Bxa4 {[%emt 0:00:30]} Rfc8 {[%emt 0:00:53]} 18. Be3 {
[%emt 0:04:40]} d5 {[%emt 0:06:01]} 19. Nc6 {[%emt 0:02:41]} Qc7 {
[%emt 0:01:07]} 20. Nxe7+ {[%emt 0:02:57]} Qxe7 {[%emt 0:00:36]} 21. e5 {
[%emt 0:00:47]} Ne8 {[%emt 0:01:38]} 22. h5 {[%emt 0:01:37]} Nc7 {
[%emt 0:00:34]} 23. Bc5 {[%emt 0:01:32]} Qd8 {[%emt 0:00:12]} 24. Rh3 {
[%emt 0:01:39]} a5 {[%emt 0:02:00]} 25. bxa5 {[%emt 0:02:08]} Na6 {
[%emt 0:00:58]} 26. Bb6 {[%emt 0:02:38]} Qe7 {[%emt 0:03:59]} 27. c3 {
[%emt 0:04:21]} Nc5 {[%emt 0:03:31]} 28. Bc2 {[%emt 0:00:32]} Nd7 {
[%emt 0:00:08]} 29. Qd3 {[%emt 0:02:08]} Nf8 {[%emt 0:02:54]} 30. f4 {
[%emt 0:06:09]} Rc6 {[%emt 0:01:42]} 31. g4 {[%emt 0:04:23]} Ba6 {
[%emt 0:01:06]} 32. Qe3 {[%emt 0:00:12]} Nd7 {[%emt 0:01:30]} 33. Bd4 {
[%emt 0:00:51]} Nc5 {[%emt 0:00:35]} 34. f5 {[%emt 0:00:40]} Rb8 {
[%emt 0:02:14]} 35. f6 {[%emt 0:00:42]} Qf8 {[%emt 0:01:04]} 36. fxg7 {
[%emt 0:02:04]} Qe7 {[%emt 0:00:41]} 37. Bxc5 {[%emt 0:00:25]} Rxc5 {
[%emt 0:00:18]} 38. Qh6 {[%emt 0:00:21]} Rxb2+ {[%emt 0:00:08]} 39. Kxb2 {
[%emt 0:00:35]} Rb5+ {[%emt 0:00:08]} 40. Kc1 {[%emt 0:00:38]} Qa3+ {
[%emt 0:00:19]} 41. Kd2 {[%emt 0:00:05]} 1-0

[Event "OGD Prinsenstad-toernooi - A groep"]
[Site "Delft"]
[Date "2013.03.30"]
[Round "3.1"]
[White "Ducarmon, Quinten"]
[Black "Smeets, Jan"]
[Result "0-1"]
[ECO "C45"]
[WhiteElo "2416"]
[BlackElo "2627"]
[PlyCount "92"]
[EventDate "2013.03.29"]
[EventType "swiss"]
[EventRounds "6"]
[EventCountry "NED"]
[Source "DSC"]
[SourceDate "2013.02.04"]
[TimeControl "6000+10"]

1. e4 {[%emt 0:00:00]} e5 {[%emt 0:00:06]} 2. Nf3 {[%emt 0:00:00]} Nc6 {
[%emt 0:00:04]} 3. d4 {[%emt 0:00:32]} exd4 {[%emt 0:00:21]} 4. Nxd4 {
[%emt 0:00:05]} Bc5 {[%emt 0:01:30]} 5. Nb3 {[%emt 0:00:35]} Bb4+ {
[%emt 0:02:52]} 6. c3 {[%emt 0:00:27]} Be7 {[%emt 0:00:17]} 7. c4 {
[%emt 0:00:14]} Nf6 {[%emt 0:02:22]} 8. Nc3 {[%emt 0:01:02]} Bb4 {
[%emt 0:08:02]} 9. Bd3 {[%emt 0:02:59]} Ne5 {[%emt 0:04:49]} 10. O-O {
[%emt 0:02:35]} Bxc3 {[%emt 0:01:09]} 11. bxc3 {[%emt 0:00:05]} d6 {
[%emt 0:03:12]} 12. Bf4 {[%emt 0:16:44]} c5 {[%emt 0:15:14]} 13. Bxe5 {
[%emt 0:06:56]} dxe5 {[%emt 0:00:07]} 14. Nxc5 {[%emt 0:00:02]} O-O {
[%emt 0:01:19]} 15. Nb3 {[%emt 0:05:53]} Qc7 {[%emt 0:07:49]} 16. Qe2 {
[%emt 0:07:57]} Be6 {[%emt 0:09:31]} 17. c5 {[%emt 0:03:03]} Bxb3 {
[%emt 0:02:49]} 18. axb3 {[%emt 0:00:02]} Qxc5 {[%emt 0:00:08]} 19. Rac1 {
[%emt 0:04:47]} Rfd8 {[%emt 0:03:04]} 20. b4 {[%emt 0:11:23]} Qb6 {
[%emt 0:00:58]} 21. Rfd1 {[%emt 0:01:53]} g6 {[%emt 0:03:09]} 22. Bc4 {
[%emt 0:06:48]} Rxd1+ {[%emt 0:05:14]} 23. Rxd1 {[%emt 0:00:06]} Rc8 {
[%emt 0:00:17]} 24. Qa2 {[%emt 0:01:47]} Nxe4 {[%emt 0:18:00]} 25. Bxf7+ {
[%emt 0:00:06]} Kf8 {[%emt 0:00:05]} 26. Bg8 {[%emt 0:14:55]} Rc7 {
[%emt 0:01:58]} 27. Rd8+ {[%emt 0:03:17]} Kg7 {[%emt 0:01:59]} 28. Bb3 {
[%emt 0:02:18]} Rxc3 {[%emt 0:03:25]} 29. Rd7+ {[%emt 0:00:57]} Kh6 {
[%emt 0:01:58]} 30. h4 {[%emt 0:01:50]} Qf6 {[%emt 0:00:44]} 31. Bd1 {
[%emt 0:00:55]} Qxh4 {[%emt 0:00:58]} 32. Qf7 {[%emt 0:00:32]} Qf4 {
[%emt 0:01:34]} 33. Qxh7+ {[%emt 0:01:35]} Kg5 {[%emt 0:00:00]} 34. Qe7+ {
[%emt 0:01:29]} Qf6 {[%emt 0:00:02]} 35. f4+ {[%emt 0:01:44]} Kxf4 {
[%emt 0:00:16]} 36. Qe8 {[%emt 0:00:04]} Kg5 {[%emt 0:00:24]} 37. Rf7 {
[%emt 0:00:09]} Nd6 {[%emt 0:00:10]} 38. Rxf6 {[%emt 0:00:17]} Nxe8 {
[%emt 0:00:01]} 39. Re6 {[%emt 0:00:01]} Nf6 {[%emt 0:00:16]} 40. Rxe5+ {
[%emt 0:00:05]} Kf4 {[%emt 0:00:02]} 41. Re6 {[%emt 0:00:04]} Rc6 {
[%emt 0:00:19]} 42. Re1 {[%emt 0:00:35]} Rc1 {[%emt 0:00:02]} 43. Rf1+ {
[%emt 0:00:09]} Ke5 {[%emt 0:00:00]} 44. b5 {[%emt 0:00:06]} Ne4 {
[%emt 0:00:08]} 45. Kh2 {[%emt 0:00:12]} Nc3 {[%emt 0:00:21]} 46. Re1+ {
[%emt 0:00:01]} Kd6 {[%emt 0:00:10]} 0-1

[Event "OGD Prinsenstad-toernooi - A groep"]
[Site "Delft"]
[Date "2013.03.30"]
[Round "3.2"]
[White "L'Ami, Erwin"]
[Black "Ootes, Lars"]
[Result "1-0"]
[ECO "E94"]
[WhiteElo "2615"]
[BlackElo "2350"]
[PlyCount "79"]
[EventDate "2013.03.29"]
[EventType "swiss"]
[EventRounds "6"]
[EventCountry "NED"]
[Source "DSC"]
[SourceDate "2013.02.04"]
[TimeControl "6000+10"]

1. d4 Nf6 2. c4 g6 3. Nc3 Bg7 4. e4 d6 5. Nf3 O-O 6. Be2 e5 7. O-O Nbd7 8. Be3
Re8 9. d5 Nh5 10. g3 Bf8 11. Ne1 Ng7 12. Nd3 f5 13. f3 Be7 14. Qd2 Nf6 15. c5
fxe4 16. fxe4 Bh3 17. Rf2 Ng4 18. Bxg4 Bxg4 19. c6 bxc6 20. dxc6 Rf8 21. Rxf8+
Bxf8 22. Nd5 Be6 23. Qa5 Ne8 24. Rf1 a6 25. h4 Bf7 26. Nf2 Be6 27. Qd2 Qb8 28.
Nd1 a5 29. Rxf8+ Kxf8 30. Bh6+ Kg8 31. Qf2 Ng7 32. Qf6 Qf8 33. Bxg7 Qxf6 34.
Bxf6 Kf7 35. Bg5 Rb8 36. Nxc7 Bxa2 37. Nd5 Rc8 38. N1c3 Bc4 39. c7 Ke6 40. Bd8
1-0